Cogmind - Beta 17 @@@ ROGUE MODE // 2026.07.06 @ 22:48:37 Player: VC94 Result: Destroyed by Y-45 Defender with Heavy Assault Rifle Performance ------------- Evolutions (1) 500 Regions Visited (3) 600 Robots Destroyed (54) 270 Value Destroyed (1508) 1508 Prototype IDs (0) 0 Alien Tech Used (0) 0 Bonus (0) 0 TOTAL SCORE: 2878 Bonus ------- None Cogmind --------- Core Integrity 0/400 Matter 159/300 Energy 259/265 System Corruption 0% Temperature Cool (30) Movement Walking (120) Location -9/Storage Parts ------- > --- POWER (1) -------- Improved Ion Engine > --- PROPULSION (3) --- Aluminum Leg Aluminum Leg Improved Aluminum Leg > --- UTILITY (3) ------ Small Storage Unit Targeting Computer Improved Targeting Computer > --- WEAPON (2) ------- Heavy Assault Rifle > --- INVENTORY (8) ---- Improved Ion Engine Light Nuclear Core Aluminum Leg Aluminum Leg ECM Suite Hardened Light Armor Plating Hardened Light Armor Plating Heavy Assault Rifle Peak State ------------ > --- POWER ------------ Improved Ion Engine > --- PROPULSION ------- Aluminum Leg Aluminum Leg Improved Aluminum Leg > --- UTILITY ---------- Small Storage Unit Targeting Computer Improved Targeting Computer > --- WEAPON ----------- Heavy Assault Rifle Heavy Assault Rifle > --- INVENTORY -------- Improved Ion Engine Light Nuclear Core ECM Suite Hardened Light Armor Plating Hardened Light Armor Plating Heavy Assault Rifle Datajack [Rating: 15] Favorites ----------- Power Improved Ion Engine Engine Improved Ion Engine Propulsion Aluminum Leg Leg Aluminum Leg Utility Small Storage Unit Storage Small Storage Unit Processor Targeting Computer Protection Hardened Light Armor Plating Weapon Light Assault Rifle Energy Gun Beam Rifle Energy Cannon Beam Cannon Ballistic Gun Light Assault Rifle Launcher Rocket Launcher Build | -11 -10 -9 -9 ------- Run | Yrd Mat Mat Sto Slots Evolved 2 | . . 2 . Power . | . . . . Propulsion 1 | . . 1 . Utility 1 | . . 1 . Weapon . | . . . . Parts Attached 37 | 6 2 11 18 Power 6 | 1 . 1 4 Engine 6 | 1 . 1 4 Core . | . . . . Reactor . | . . . . Propulsion 15 | 2 1 4 8 Treads . | . . . . Leg 15 | 2 1 4 8 Wheel . | . . . . Hover . | . . . . Flight . | . . . . Utility 4 | 1 . 3 . Device . | . . . . Storage 1 | 1 . . . Processor 2 | . . 2 . Hackware . | . . . . Protection 1 | . . 1 . Artifact . | . . . . Weapon 12 | 2 1 3 6 Energy Gun 2 | . . . 2 Energy Cannon 1 | . 1 . . Ballistic Gun 8 | 2 . 2 4 Ballistic Cannon . | . . . . Launcher 1 | . . 1 . Special Weapon . | . . . . Impact Weapon . | . . . . Slashing Weapon . | . . . . Piercing Weapon . | . . . . Special Melee Weapon . | . . . . Unidentified Prototypes . | . . . . Parts Lost 17 | . 2 4 11 Power 3 | . 1 . 2 Propulsion 9 | . 1 3 5 Utility 1 | . . 1 . Weapon 4 | . . . 4 Highest Loss Streak 3 | . 2 2 3 To Critical Strikes . | . . . . Average Backups 6 | . 4 7 7 Power 1 | . 1 2 2 Propulsion . | . . . . Utility 3 | . 1 3 3 Weapon . | . 1 . . Tool/Special . | . . . . Unused Backups 14 | . 3 3 8 Power 6 | . 2 1 3 Propulsion . | . . . . Utility 5 | . 1 . 4 Weapon 2 | . . 2 . Tool/Special 1 | . . . 1 Average Slot Usage (%) 85 | . 83 75 91 Engine 8 | . 13 1 10 Leg 27 | . 27 26 27 Storage 11 | . 14 11 11 Processor 12 | . . 6 22 Protection 2 | . . 8 . Energy Gun 2 | . . . 5 Energy Cannon 2 | . 9 1 . Ballistic Gun 16 | . 18 19 13 Peak Build Rating 15 | 6 7 13 15 Average Rating 10 | 4 6 9 12 On Entrance 6 | . 6 6 13 Avg Prop Armor Cover (%) . | . . . . Naked Turns . | . . . . Heaviest Build 18 | 11 13 15 18 Greatest Support 33 | 20 20 33 33 Greatest Overweight (x) 4 | 1 1 1 4 Average Overweight (x) . | . . . . Largest Inventory Capacity 8 | 8 8 8 8 Average Capacity 7 | 6 8 8 8 Most Carried 8 | 2 7 8 8 Average Carried 6 | 1 4 7 7 Final Capacity 8 | 8 8 8 8 Final Carried 8 | 2 7 8 8 Class Distribution -------------------- 52% | Mutant 47% | Scavenger-Mutant Dominant Class ---------------- Mutant | -10/Materials Mutant | -9/Materials Scavenger-Mutant | -9/Storage Resources | -11 -10 -9 -9 ----------- Run | Yrd Mat Mat Sto Matter Collected 1234 | 234 96 195 709 Remotely . | . . . . Salvage Created 1892 | . 248 455 1189 Parts 115 | . 10 46 59 Haulers Intercepted 2 | . . . 2 Recyclers Shooed 2 | . . 1 1 Parts Field Recycled . | . . . . Retrieved Matter . | . . . . Parts Self-Destructed . | . . . . Prevented . | . . . . Parts Restored . | . . . . Kills | -11 -10 -9 -9 ------- Run | Yrd Mat Mat Sto Combat Hostiles Destroyed 41 | . 5 13 23 Guns 29 | . 1 8 20 Cannons 6 | . 4 2 . AOE 6 | . . 3 3 Classes Destroyed 11 | . 1 6 4 Worker 3 | . . 1 2 Tunneler 1 | . . 1 . Hauler 2 | . . . 2 Recycler 3 | . . 1 2 Mechanic 1 | . . . 1 Operator 1 | . . . 1 Watcher 2 | . . 2 . Swarmer 9 | . . 6 3 Grunt 19 | . 5 4 10 Duelist 1 | . . . 1 Sentry 12 | . . 3 9 Best Kill Streak 7 | . 2 7 6 Combat Bots Only 4 | . 2 4 3 Max Kills in Single Turn 3 | . 1 3 2 Gunslinging 1 | . . . 1 Exploded 2 | . . 2 1 Melee . | . . . . Uniques/NPCs Destroyed . | . . . . Combat | -11 -10 -9 -9 -------- Run | Yrd Mat Mat Sto Hostile Shots Fired 284 | . 38 123 123 Missed 98 | . 14 44 40 Hits 186 | . 24 79 83 Melee 8 | . . . 8 Projectile 178 | . 24 79 75 Critical Strikes 10 | . 2 3 5 Damage Taken 2665 | . 387 889 1389 Core 445 | . 42 187 216 Absorbed by Shields . | . . . . Core Remaining (%) 91 | 100 83 . . Volleys Fired 186 | . 20 62 104 Largest 2 | . 2 2 2 Hottest 80 | . 80 80 79 Shots Fired 351 | . 40 122 189 Gun 302 | . 20 108 174 Cannon 26 | . 20 6 . Launcher 23 | . . 8 15 Special . | . . . . Kinetic 257 | . 20 108 129 Thermal 71 | . 20 6 45 Explosive 23 | . . 8 15 Electromagnetic . | . . . . Robot Hit Streak 12 | . 6 11 12 Robot Miss Streak 5 | . 2 5 5 Penetration Max . | . . . . Secondary Targets 1 | . . . 1 Max Gunslinging Chain 1 | . . . 1 Shots Hit Robots 242 | . 27 80 135 Core Hits 108 | . 11 37 60 Critical Kills . | . . . . Critical Parts Destroyed . | . . . . Critical Strikes 1 | . . . 1 Burn 1 | . . . 1 Melee Attacks . | . . . . Impact . | . . . . Slashing . | . . . . Piercing . | . . . . Sneak Attacks . | . . . . Combat Hostiles . | . . . . Follow-up Attacks . | . . . . Damage Inflicted 3974 | . 421 1088 2465 Guns 2518 | . 159 568 1791 Cannons 366 | . 262 104 . Explosions 1090 | . . 416 674 Melee . | . . . . Ramming . | . . . . Kinetic 2145 | . 159 568 1418 Thermal 739 | . 262 104 373 Explosive 1090 | . . 416 674 Electromagnetic . | . . . . Impact . | . . . . Slashing . | . . . . Piercing . | . . . . Highest Corruption . | . . . . Average Corruption . | . . . . Corruption Purged . | . . . . Corruption Blocked . | . . . . Overload Shots . | . . . . Overflow Damage 61 | . . . 61 Projectiles . | . . . . Explosions 61 | . . . 61 Melee . | . . . . Knockbacks . | . . . . Impact . | . . . . Kinetic . | . . . . Secondary . | . . . . Self-Inflicted Damage 214 | . . 19 195 Shots 9 | . . 1 8 Rammed . | . . . . Targets Rammed . | . . . . Kicked . | . . . . Crushed . | . . . . Highest Temperature 267 | . 267 112 102 Average Temperature 50 | . 99 23 23 Received Heat Transfer 927 | . 237 273 417 Siege Activations . | . . . . Martial Activations . | . . . . Shielding Activations . | . . . . Robots Disrupted . | . . . . Combat Hostiles . | . . . . Robots Corrupted . | . . . . Combat Hostiles . | . . . . Parts Fried . | . . . . Impact Corruptions . | . . . . Robots Melted . | . . . . Combat Hostiles . | . . . . Parts Melted . | . . . . Heat Transferred 1756 | . 555 222 979 Parts Sabotaged . | . . . . Parts Stolen . | . . . . Parts Stripped . | . . . . Power Chain Reactions . | . . . . Alert | -11 -10 -9 -9 ------- Run | Yrd Mat Mat Sto Maximum Alert Level 1 | . . 1 1 Low Security (%) 78 | 100 100 92 58 Level 1 21 | . . 7 41 Level 2 . | . . . . Level 3 . | . . . . Level 4 . | . . . . Level 5 . | . . . . High Security . | . . . . Max Security . | . . . . Peak Influence 311 | . 106 208 311 Initial 62 | . . 40 62 Average 122 | . 29 108 180 Influence Increases 1490 | . 202 465 823 Destroy 0b10 Robot/C 820 | . 100 260 460 Destroy 0b10 Robot/NC 65 | . . 25 40 Destroy Leader 258 | . 40 64 154 Successful Hack 3 | . . 3 . Disable Machine 60 | . 15 15 30 Destroy Structure 134 | . 2 38 94 Lose Combat Pursuer 150 | . 45 60 45 Influence Decreases 1179 | . 104 414 661 Entered New Map 145 | . . 58 87 Time Decay 864 | . 84 316 464 Lost Part 170 | . 20 40 110 Squads Dispatched 11 | . 1 3 7 Investigation 2 | . 1 1 . Extermination . | . . . . Reinforcement 3 | . . 2 1 Assault . | . . . . Garrison 6 | . . . 6 Intercept . | . . . . Searches Triggered . | . . . . Construction Impeded . | . . . . Haulers Reinforced . | . . . . Active Scanning Responses . | . . . . Cargo Convoy Interrupts . | . . . . Stealth | -11 -10 -9 -9 --------- Run | Yrd Mat Mat Sto Distress Signals 7 | . . 3 4 Communications Jammed . | . . . . Distress Signals . | . . . . Times Spotted 72 | . 10 25 37 Peak Tracking Total 7 | . 3 7 4 Tactical Retreats 7 | . 2 2 3 Traps | -11 -10 -9 -9 ------- Run | Yrd Mat Mat Sto Traps Triggered 2 | . 1 . 1 Indirectly . | . . . . Trap Hack Attempts . | . . . . Triggered . | . . . . Disarmed . | . . . . Reprogrammed . | . . . . Reused . | . . . . Traps Extracted . | . . . . Installed . | . . . . Triggered . | . . . . Machines | -11 -10 -9 -9 ---------- Run | Yrd Mat Mat Sto Machines Disabled 4 | . 1 1 2 Max in Single Turn 1 | . 1 1 1 Machines Repaired . | . . . . Machines Dismantled . | . . . . Machines Sabotaged . | . . . . Overloaded Fab Kills . | . . . . Hacking | -11 -10 -9 -9 --------- Run | Yrd Mat Mat Sto Machines Accessed 4 | . 1 1 2 Terminals 3 | . 1 . 2 Fabricators . | . . . . Repair Stations . | . . . . Recycling Units . | . . . . Scanalyzers 1 | . . 1 . Garrison Access . | . . . . Total Hacks 10 | . 3 3 4 Successful 7 | . 1 3 3 Failed 3 | . 2 . 1 Catastrophic . | . . . . Database Lockouts . | . . . . Manual . | . . . . Terminals 7 | . 3 . 4 Fabricators . | . . . . Repair Stations . | . . . . Recycling Units . | . . . . Scanalyzers 3 | . . 3 . Garrison Access . | . . . . Terminal Hacks 4 | . 1 . 3 Alert Level 2 | . . . 2 Locate Traps 2 | . 1 . 1 Fabricator Hacks . | . . . . Repair Station Hacks . | . . . . Recycling Unit Hacks . | . . . . Scanalyzer 3 | . . 3 . Insert Component 1 | . . 1 . Analyze 2 | . . 2 . Garrison Access Hacks . | . . . . Unauthorized Hacks . | . . . . Terminals . | . . . . Fabricators . | . . . . Repair Stations . | . . . . Recycling Units . | . . . . Scanalyzers . | . . . . Garrison Access . | . . . . Data Cores Recovered . | . . . . Used . | . . . . Hacking Detections 3 | . 1 1 1 Full Trace Events 2 | . 1 1 . Feedback Events . | . . . . Feedback Blocked . | . . . . Robot Schematics Acquired . | . . . . Robots Built . | . . . . Authchips . | . . . . Time . | . . . . Total Robot Build Rating . | . . . . Part Schematics Acquired 1 | . . 1 . Parts Built . | . . . . Authchips . | . . . . Time . | . . . . Total Part Build Rating . | . . . . Part Studies Acquired . | . . . . Parts Repaired . | . . . . Time . | . . . . Parts Recycled . | . . . . Recycled Matter . | . . . . Retrieved Matter . | . . . . Retrieved Components . | . . . . Parts Scanalyzed 1 | . . 1 . Part Schematics Acquired 1 | . . 1 . Parts Damaged . | . . . . Bothacking | -11 -10 -9 -9 ------------ Run | Yrd Mat Mat Sto Used RIF Installer . | . . . . Robots Hacked . | . . . . Non-combat . | . . . . Combat . | . . . . Robot Hacks Applied . | . . . . Relay Couplers Released . | . . . . Fabnet Peak Effective % . | . . . . Robots Rewired . | . . . . Allies Hacked . | . . . . Hacks Repelled . | . . . . Allies | -11 -10 -9 -9 -------- Run | Yrd Mat Mat Sto Total Allies . | . . . . Largest Group . | . . . . Highest-Rated Group . | . . . . Highest-Rated Ally . | . . . . Total Orders . | . . . . Ally Attacks . | . . . . Total Damage . | . . . . Kills . | . . . . Allies Corrupted . | . . . . Allies Melted . | . . . . Intel | -11 -10 -9 -9 ------- Run | Yrd Mat Mat Sto Active Infowar (turns) . | . . . . Robot Analysis Total . | . . . . Derelict Logs Recovered . | . . . . Drone Launches . | . . . . Drone Recoveries . | . . . . Exploration | -11 -10 -9 -9 ------------- Run | Yrd Mat Mat Sto Turns Passed 2490 | 63 540 713 1174 Spaces Moved 1445 | 52 362 417 614 Core 51 | 22 . . 29 Treads . | . . . . Legs 1394 | 30 362 417 585 Wheels . | . . . . Hover . | . . . . Flight . | . . . . Fastest Speed 50 | 50 120 120 120 Average Speed 123 | 100 120 120 129 Slowest Speed 250 | 190 190 190 250 Overloaded Moves . | . . . . Propulsion Burnouts . | . . . . Robots Hopped . | . . . . Potential Cave-ins . | . . . . Cave-ins Triggered . | . . . . Exploration Rate (%) 43 | 3 45 45 81 Regions Visited 3 Branch Regions 1 Pre-discovered Areas . | . . . . Known Exits Taken . | . . . . Unknown Exits Taken 3 | 1 1 1 . Scrap Searched . | . . . . Spaces Dug . | . . . . Terrain Destroyed 164 | . . 60 104 Melee . | . . . . Projectile . | . . . . AOE 164 | . . 60 104 Terrain Rammed . | . . . . Walls Destroyed . | . . . . Machines Disabled . | . . . . Actions | -11 -10 -9 -9 --------- Run | Yrd Mat Mat Sto Total 1814 | 59 427 525 803 Wait 98 | . 31 20 47 Move 1442 | 51 361 416 614 Hop . | . . . . Pick Up 21 | 2 9 8 2 Fast Attach 26 | 6 1 6 13 Attach 7 | . 1 4 2 Detach . | . . . . Swap 10 | . . 3 7 Drop 19 | . 4 6 9 Fire 186 | . 20 62 104 Melee . | . . . . Ram . | . . . . Kick . | . . . . Crush . | . . . . Escape Stasis 5 | . . . 5 Rewire . | . . . . Trap . | . . . . Miscellaneous . | . . . . Route ------- -11/Scrapyard -10/Materials (discovered 2 exits: *Mat / [*Min]) -9/Materials (discovered 2 exits: [*Min] / *Sto) -9/Storage History --------- Turn | Location | Event 26 | -11/Scrapyard | Discovered new exit (range 15) 64 | -11/Scrapyard | Entered Materials 128 | -10/Materials | Discovered new exit (range 13) 311 | -10/Materials | Build established: Mutant 528 | -10/Materials | Discovered new exit (range 8) 604 | -10/Materials | Entered another Materials area 604 | -9/Materials | Evolved 2 slots: Propulsion x1, Utility x1 874 | -9/Materials | Discovered new exit (range 8) 1071 | -9/Materials | Discovered new exit (range 10) 1317 | -9/Materials | Entered Storage 1503 | -9/Storage | Core integrity fell below 50% 1537 | -9/Storage | Lost 3 parts (1n2w) 1563 | -9/Storage | Garrison activated, responded to threat 2006 | -9/Storage | Build established: Scavenger-Mutant 2183 | -9/Storage | Garrison activated, responded to threat 2396 | -9/Storage | Core integrity fell below 20% 2491 | -9/Storage | Destroyed by Y-45 Defender with Heavy Assault Rifle Last Messages --------------- 02398_ Acquired Imp. Aluminum Leg. 02399_ Destroyed Imp. Aluminum Leg. 02402_ L-31 Rogue destroyed. 02405_ K-01 Serf collects debris. 02405_ Acquired 51 matter. 02409_ K-01 Serf collects debris. 02419_ K-01 Serf cleans the Recycling Unit. 02420_ W-16 Scout sends out distress signal. 02423_ K-01 Serf cleans the Recycling Unit. 02430_ G-34 Mercenary destroyed. 02432_ K-01 Serf collects debris. 02433_ Dropped Datajack. 02435_ K-01 Serf cleans the Component Storage. 02445_ Dropped Aluminum Leg. 02449_ K-01 Serf cleans the Component Storage. 02478_ Hvy. Assault Rifle destroyed. 02483_ Y-45 Defender destroyed. 02491_ Critical hit (Burn: +37). Map ----- +----------------------------------------------------+ | ????????????????????????????? | | ????????????????????????????? | | ????????????????????????????? | | ????????????????????????????? | | ????????????????????????????? | | ????????????????????????????? | | ????????????????????????????? | | ????????????????????????????? | | ????????????????????????????? | | ????????????????????????????? | | ??? ??????????????????????? | | ??? ??????????????????????? | | ??? ??????????????????????? | | ??# #?????????????????????? | | ??# #?????????????????????? | | ??# #?????????????????????? | | ??# #?????????????????????? | | ??# #?????????????????????? | | ??# #?????????????????????? | | ??# #?????????????????????? | | ??# #?????????????????????? | | ?## ##????????????????????? | | ?# ########## ?????????? | | ?# ! ????????? | | ?# !%[ Y??????### | | ?# @ ??????# | | ?# ######?????????????# | | ?### ###????#######?##????# | | ???# #??????# ???# | | ???# #??????# """"" """???# | | ???#+######## """"" """???# | | ???# # """"" "?????# | | ???# = # ???????# | | ???# ! # ?????????# | | ???# [ = ##+####+#?????# | | ???# + ####### | | ???# # ! =%[/ | | ???# ]# """/ ######## | | ???# = # """ #??????? | | ???# # """ #??????? | | ?##########+# """ #??????? | | ? # """ #??????? | | ?""" # +??????? | | #""" # #??????? | | #""" # ##??????? | | # # "Y" #???????? | | #""" # """ ####????? | | #""" # % ## ###### | | #""" + * # | | # # ###### # | +----------------------------------------------------+ Best States ------------- Heat Dissipation 28 Energy Generation 12 Energy Capacity 265 Matter Stores 300 Matter Capacity 300 Sight Range 16 Terrain Scan Density 10 Armor Coverage 150 Evasion (%) 55 Targeting Accuracy 11 Item Schematics ----------------- Lgt. Nuclear Core | -9/Materials | Scanalyzed Robot Schematics ------------------ None Fabricated ------------ Nothing Repaired ---------- Nothing Studied --------- None Alien Tech Used ----------------- None Achievements -------------- None Challenges ------------ None Game ------ Seed AdvancedEfficiencyCartridge Manual? 0 Play Time 00:22:24 Cumulative 20.7 hours Start 2026.07.06 @ 22:25:52 End 2026.07.06 @ 22:48:37 Sessions 1 Manual Loads 0 Difficulty Rogue Special Mode None Game No. 44 Rogue 44 Adventurer 0 Explorer 0 Win Type - Total 0 Types 0/0/0/0/0/0/0/0/0/0 Lore% 5 Gallery% 17 Achievement% 13 Wizard Run 0 Options --------- Layout 1 ASCII 0 Keyboard 0 Movement Mouse Keybinds 0 Fullscreen 1 Font 36/Smallcaps Map View 51x40 Zoom Use 0% Tactical HUD 1 Map Filters NONE Filters NONE Steam 1 RUN: 2b88c2fd-6ae0-4795-9f50-f128510881fd